Cogmind - Beta 16.1 @@@ ROGUE MODE // 2026.06.17 @ 15:49:15 Player: Godsword Result: Destroyed by S-10 Pest with Light Assault Rifle Performance ------------- Evolutions (2) 1000 Regions Visited (6) 1200 Robots Destroyed (0) 0 Value Destroyed (0) 0 Prototype IDs (0) 0 Alien Tech Used (0) 0 Bonus (670) 670 TOTAL SCORE: 2870 Bonus ------- Pacifist 470 Entered Garrisons 200 Cogmind --------- Core Integrity 0/550 Matter 300/300 Energy 100/100 System Corruption 0% Temperature Cool (0) Movement Core (50) Location -8/Garrison Parts ------- > --- POWER (1) -------- (None) > --- PROPULSION (2) --- (None) > --- UTILITY (2) ------ (None) > --- WEAPON (6) ------- (None) > --- INVENTORY (5) ---- (None) Peak State ------------ None Favorites ----------- Power None Propulsion None Utility None Weapon None Build | -11 -10 -10 -9 -8 -8 -8 ------- Run | Yrd Mat Min Mat Mat Sto Gar Slots Evolved 4 | . . . 2 2 . . Power . | . . . . . . . Propulsion . | . . . . . . . Utility . | . . . . . . . Weapon 4 | . . . 2 2 . . Parts Attached . | . . . . . . . Power . | . . . . . . . Engine . | . . . . . . . Core . | . . . . . . . Reactor . | . . . . . . . Propulsion . | . . . . . . . Treads . | . . . . . . . Leg . | . . . . . . . Wheel . | . . . . . . . Hover . | . . . . . . . Flight . | . . . . . . . Utility . | . . . . . . . Device . | . . . . . . . Storage . | . . . . . . . Processor . | . . . . . . . Hackware . | . . . . . . . Protection . | . . . . . . . Artifact . | . . . . . . . Weapon . | . . . . . . . Energy Gun . | . . . . . . . Energy Cannon . | . . . . . . . Ballistic Gun . | . . . . . . . Ballistic Cannon . | . . . . . . . Launcher . | . . . . . . . Special Weapon . | . . . . . . . Impact Weapon . | . . . . . . . Slashing Weapon . | . . . . . . . Piercing Weapon . | . . . . . . . Special Melee Weapon . | . . . . . . . Unidentified Prototypes . | . . . . . . . Parts Lost . | . . . . . . . Power . | . . . . . . . Propulsion . | . . . . . . . Utility . | . . . . . . . Weapon . | . . . . . . . Highest Loss Streak . | . . . . . . . To Critical Strikes . | . . . . . . . Average Backups . | . . . . . . . Power . | . . . . . . . Propulsion . | . . . . . . . Utility . | . . . . . . . Weapon . | . . . . . . . Tool/Special . | . . . . . . . Unused Backups . | . . . . . . . Power . | . . . . . . . Propulsion . | . . . . . . . Utility . | . . . . . . . Weapon . | . . . . . . . Tool/Special . | . . . . . . . Average Slot Usage (%) . | . . . . . . . Peak Build Rating . | . . . . . . . Average Rating . | . . . . . . . On Entrance . | . . . . . . . Avg Prop Armor Cover (%) . | . . . . . . . Naked Turns 788 | . 69 172 168 210 102 67 Heaviest Build . | . . . . . . . Greatest Support 3 | 3 3 3 3 3 3 3 Greatest Overweight (x) . | . . . . . . . Average Overweight (x) . | . . . . . . . Largest Inventory Capacity 5 | 5 5 5 5 5 5 5 Average Capacity 5 | 5 5 5 5 5 5 5 Most Carried . | . . . . . . . Average Carried . | . . . . . . . Final Capacity 5 | 5 5 5 5 5 5 5 Final Carried . | . . . . . . . Class Distribution -------------------- 100% | Mutant Dominant Class ---------------- Mutant | -10/Materials Mutant | -10/Mines Mutant | -9/Materials Mutant | -8/Materials Mutant | -8/Storage Mutant | -8/Garrison Resources | -11 -10 -10 -9 -8 -8 -8 ----------- Run | Yrd Mat Min Mat Mat Sto Gar Matter Collected 200 | 190 . 10 . . . . Remotely . | . . . . . . . Salvage Created . | . . . . . . . Parts . | . . . . . . . Haulers Intercepted . | . . . . . . . Recyclers Shooed . | . . . . . . . Parts Field Recycled . | . . . . . . . Retrieved Matter . | . . . . . . . Parts Self-Destructed . | . . . . . . . Prevented . | . . . . . . . Parts Restored . | . . . . . . . Kills | -11 -10 -10 -9 -8 -8 -8 ------- Run | Yrd Mat Min Mat Mat Sto Gar Combat Hostiles Destroyed . | . . . . . . . Classes Destroyed . | . . . . . . . Best Kill Streak . | . . . . . . . Combat Bots Only . | . . . . . . . Max Kills in Single Turn . | . . . . . . . Gunslinging . | . . . . . . . Exploded . | . . . . . . . Melee . | . . . . . . . Uniques/NPCs Destroyed . | . . . . . . . Combat | -11 -10 -10 -9 -8 -8 -8 -------- Run | Yrd Mat Min Mat Mat Sto Gar Hostile Shots Fired 94 | . 14 . 10 8 29 33 Missed 36 | . 5 . 4 4 10 13 Hits 58 | . 9 . 6 4 19 20 Melee 4 | . . . . . . 4 Projectile 54 | . 9 . 6 4 19 16 AOE 1 | . . . . . . 1 Critical Strikes 5 | . . . 2 . 1 2 Damage Taken 739 | . 102 . 84 65 237 251 Core 739 | . 102 . 84 65 237 251 Absorbed by Shields 17 | . . . . . . 17 Core Remaining (%) 79 | 100 . 59 79 . . . Volleys Fired . | . . . . . . . Largest . | . . . . . . . Hottest . | . . . . . . . Shots Fired . | . . . . . . . Gun . | . . . . . . . Cannon . | . . . . . . . Launcher . | . . . . . . . Special . | . . . . . . . Kinetic . | . . . . . . . Thermal . | . . . . . . . Explosive . | . . . . . . . Electromagnetic . | . . . . . . . Robot Hit Streak . | . . . . . . . Robot Miss Streak . | . . . . . . . Penetration Max . | . . . . . . . Secondary Targets . | . . . . . . . Shots Hit Robots . | . . . . . . . Core Hits . | . . . . . . . Critical Kills . | . . . . . . . Critical Parts Destroyed . | . . . . . . . Critical Strikes . | . . . . . . . Melee Attacks . | . . . . . . . Impact . | . . . . . . . Slashing . | . . . . . . . Piercing . | . . . . . . . Sneak Attacks . | . . . . . . . Combat Hostiles . | . . . . . . . Follow-up Attacks . | . . . . . . . Damage Inflicted 21 | . . . . 16 1 4 Guns . | . . . . . . . Cannons . | . . . . . . . Explosions . | . . . . . . . Melee . | . . . . . . . Ramming 21 | . . . . 16 1 4 Kinetic . | . . . . . . . Thermal . | . . . . . . . Explosive . | . . . . . . . Electromagnetic . | . . . . . . . Impact . | . . . . . . . Slashing . | . . . . . . . Piercing . | . . . . . . . Highest Corruption . | . . . . . . . Average Corruption . | . . . . . . . Corruption Purged . | . . . . . . . Corruption Blocked . | . . . . . . . Overload Shots . | . . . . . . . Overflow Damage . | . . . . . . . Projectiles . | . . . . . . . Explosions . | . . . . . . . Melee . | . . . . . . . Knockbacks . | . . . . . . . Impact . | . . . . . . . Kinetic . | . . . . . . . Secondary . | . . . . . . . Self-Inflicted Damage 10 | . . . . 8 . 2 Shots . | . . . . . . . Rammed 4 | . . . . 2 1 1 Targets Rammed 4 | . . . . 2 1 1 Kicked . | . . . . . . . Crushed . | . . . . . . . Highest Temperature . | . . . . . . . Average Temperature . | . . . . . . . Received Heat Transfer 261 | . 51 . 87 9 81 33 Siege Activations . | . . . . . . . Martial Activations . | . . . . . . . Shielding Activations . | . . . . . . . Robots Disrupted . | . . . . . . . Combat Hostiles . | . . . . . . . Robots Corrupted . | . . . . . . . Combat Hostiles . | . . . . . . . Parts Fried . | . . . . . . . Impact Corruptions . | . . . . . . . Robots Melted . | . . . . . . . Combat Hostiles . | . . . . . . . Parts Melted . | . . . . . . . Heat Transferred . | . . . . . . . Parts Sabotaged . | . . . . . . . Parts Stolen . | . . . . . . . Parts Stripped . | . . . . . . . Power Chain Reactions . | . . . . . . . Alert | -11 -10 -10 -9 -8 -8 -8 ------- Run | Yrd Mat Min Mat Mat Sto Gar Maximum Alert Level . | . . . . . . . Low Security (%) 100 | 100 100 100 100 100 100 100 Level 1 . | . . . . . . . Level 2 . | . . . . . . . Level 3 . | . . . . . . . Level 4 . | . . . . . . . Level 5 . | . . . . . . . High Security . | . . . . . . . Max Security . | . . . . . . . Peak Influence 66 | . 8 . 15 30 44 66 Initial 22 | . . . . . . 22 Average 7 | . 2 . . 4 16 41 Influence Increases 191 | . 13 . 15 45 74 44 Successful Hack 41 | . 13 . . . 14 14 Partial Spotted 60 | . . . 15 45 . . Lose Combat Pursuer 90 | . . . . . 60 30 Influence Decreases 125 | . 13 . 15 45 40 12 Entered New Map 12 | . . . . . . 12 Time Decay 108 | . 13 . 10 45 40 . Purge Threat 5 | . . . 5 . . . Squads Dispatched 4 | . 1 . . 1 2 . Investigation 1 | . . . . . 1 . Extermination . | . . . . . . . Reinforcement 3 | . 1 . . 1 1 . Assault . | . . . . . . . Garrison . | . . . . . . . Intercept . | . . . . . . . Searches Triggered . | . . . . . . . Construction Impeded . | . . . . . . . Haulers Reinforced . | . . . . . . . Active Scanning Responses . | . . . . . . . Cargo Convoy Interrupts . | . . . . . . . Stealth | -11 -10 -10 -9 -8 -8 -8 --------- Run | Yrd Mat Min Mat Mat Sto Gar Distress Signals 2 | . 1 . . . 1 . Communications Jammed . | . . . . . . . Distress Signals . | . . . . . . . Times Spotted 37 | . 8 . 3 3 14 9 Peak Tracking Total 14 | . 8 . 3 4 14 7 Tactical Retreats 3 | . . . . . 2 1 Traps | -11 -10 -10 -9 -8 -8 -8 ------- Run | Yrd Mat Min Mat Mat Sto Gar Traps Triggered 2 | . . . . . . 2 Indirectly . | . . . . . . . Trap Hack Attempts . | . . . . . . . Triggered . | . . . . . . . Disarmed . | . . . . . . . Reprogrammed . | . . . . . . . Reused . | . . . . . . . Traps Extracted . | . . . . . . . Installed . | . . . . . . . Triggered . | . . . . . . . Machines | -11 -10 -10 -9 -8 -8 -8 ---------- Run | Yrd Mat Min Mat Mat Sto Gar Machines Disabled . | . . . . . . . Max in Single Turn . | . . . . . . . Machines Repaired . | . . . . . . . Machines Dismantled . | . . . . . . . Machines Sabotaged . | . . . . . . . Overloaded Fab Kills . | . . . . . . . Hacking | -11 -10 -10 -9 -8 -8 -8 --------- Run | Yrd Mat Min Mat Mat Sto Gar Machines Accessed 11 | . 3 . 2 1 4 1 Terminals 8 | . 3 . 1 1 2 1 Fabricators . | . . . . . . . Repair Stations . | . . . . . . . Recycling Units 2 | . . . 1 . 1 . Scanalyzers . | . . . . . . . Garrison Access 1 | . . . . . 1 . Total Hacks 23 | . 5 . 6 2 9 1 Successful 10 | . 2 . 2 1 4 1 Failed 13 | . 3 . 4 1 5 . Catastrophic 1 | . . . . . 1 . Database Lockouts . | . . . . . . . Manual 2 | . . . 2 . . . Terminals 16 | . 5 . 3 2 5 1 Fabricators . | . . . . . . . Repair Stations . | . . . . . . . Recycling Units 6 | . . . 3 . 3 . Scanalyzers . | . . . . . . . Garrison Access 1 | . . . . . 1 . Terminal Hacks 8 | . 2 . 2 1 2 1 Robot Analysis 1 | . . . 1 . . . Open Door 2 | . . . . . 2 . Level Access Points 1 | . 1 . . . . . Emergency Access Points 1 | . . . . . . 1 Unreport Threat 1 | . . . 1 . . . Zone Layout 2 | . 1 . . 1 . . Fabricator Hacks . | . . . . . . . Repair Station Hacks . | . . . . . . . Recycling Unit Hacks 1 | . . . . . 1 . Retrieve Components 1 | . . . . . 1 . Scanalyzer . | . . . . . . . Garrison Access Hacks 1 | . . . . . 1 . Unlock Access 1 | . . . . . 1 . Unauthorized Hacks . | . . . . . . . Terminals . | . . . . . . . Fabricators . | . . . . . . . Repair Stations . | . . . . . . . Recycling Units . | . . . . . . . Scanalyzers . | . . . . . . . Garrison Access . | . . . . . . . Data Cores Recovered . | . . . . . . . Used . | . . . . . . . Hacking Detections 7 | . 2 . 1 1 2 1 Full Trace Events 1 | . . . . . 1 . Feedback Events . | . . . . . . . Feedback Blocked . | . . . . . . . Robot Schematics Acquired . | . . . . . . . Robots Built . | . . . . . . . Authchips . | . . . . . . . Time . | . . . . . . . Total Robot Build Rating . | . . . . . . . Part Schematics Acquired . | . . . . . . . Parts Built . | . . . . . . . Authchips . | . . . . . . . Time . | . . . . . . . Total Part Build Rating . | . . . . . . . Part Studies Acquired . | . . . . . . . Parts Repaired . | . . . . . . . Time . | . . . . . . . Parts Recycled . | . . . . . . . Recycled Matter . | . . . . . . . Retrieved Matter . | . . . . . . . Retrieved Components 1 | . . . . . 1 . Parts Scanalyzed . | . . . . . . . Part Schematics Acquired . | . . . . . . . Parts Damaged . | . . . . . . . Bothacking | -11 -10 -10 -9 -8 -8 -8 ------------ Run | Yrd Mat Min Mat Mat Sto Gar Used RIF Installer . | . . . . . . . Robots Hacked . | . . . . . . . Non-combat . | . . . . . . . Combat . | . . . . . . . Robot Hacks Applied . | . . . . . . . Relay Couplers Released . | . . . . . . . Fabnet Peak Effective % . | . . . . . . . Robots Rewired . | . . . . . . . Allies Hacked . | . . . . . . . Hacks Repelled . | . . . . . . . Allies | -11 -10 -10 -9 -8 -8 -8 -------- Run | Yrd Mat Min Mat Mat Sto Gar Total Allies . | . . . . . . . Largest Group . | . . . . . . . Highest-Rated Group . | . . . . . . . Highest-Rated Ally . | . . . . . . . Total Orders . | . . . . . . . Ally Attacks . | . . . . . . . Total Damage . | . . . . . . . Kills . | . . . . . . . Allies Corrupted . | . . . . . . . Allies Melted . | . . . . . . . Intel | -11 -10 -10 -9 -8 -8 -8 ------- Run | Yrd Mat Min Mat Mat Sto Gar Active Infowar (turns) . | . . . . . . . Robot Analysis Total 1 | . . . 1 . . . Derelict Logs Recovered 1 | . . 1 . . . . Drone Launches . | . . . . . . . Drone Recoveries . | . . . . . . . Exploration | -11 -10 -10 -9 -8 -8 -8 ------------- Run | Yrd Mat Min Mat Mat Sto Gar Turns Passed 803 | 15 69 172 168 210 102 67 Spaces Moved 829 | 30 137 199 117 113 135 98 Core 829 | 30 137 199 117 113 135 98 Treads . | . . . . . . . Legs . | . . . . . . . Wheels . | . . . . . . . Hover . | . . . . . . . Flight . | . . . . . . . Fastest Speed 50 | 50 50 50 50 50 50 50 Average Speed 50 | 50 50 50 50 50 50 50 Slowest Speed 50 | 50 50 50 50 50 50 50 Overloaded Moves . | . . . . . . . Propulsion Burnouts . | . . . . . . . Robots Hopped . | . . . . . . . Potential Cave-ins . | . . . . . . . Cave-ins Triggered . | . . . . . . . Exploration Rate (%) 24 | 4 28 48 17 8 32 32 Regions Visited 6 Branch Regions 2 Pre-discovered Areas . | . . . . . . . Known Exits Taken 2 | . . 1 . . 1 . Unknown Exits Taken 4 | 1 1 . 1 1 . . Scrap Searched 1 | . . 1 . . . . Spaces Dug . | . . . . . . . Terrain Destroyed . | . . . . . . . Melee . | . . . . . . . Projectile . | . . . . . . . AOE . | . . . . . . . Terrain Rammed . | . . . . . . . Walls Destroyed . | . . . . . . . Machines Disabled . | . . . . . . . Actions | -11 -10 -10 -9 -8 -8 -8 --------- Run | Yrd Mat Min Mat Mat Sto Gar Total 1211 | 29 136 270 225 266 169 116 Wait 366 | . . 72 109 152 33 . Move 825 | 29 136 198 116 113 135 98 Hop . | . . . . . . . Pick Up . | . . . . . . . Fast Attach . | . . . . . . . Attach . | . . . . . . . Detach . | . . . . . . . Swap . | . . . . . . . Drop . | . . . . . . . Fire . | . . . . . . . Melee . | . . . . . . . Ram 3 | . . . . 1 1 1 Kick . | . . . . . . . Crush . | . . . . . . . Escape Stasis 17 | . . . . . . 17 Rewire . | . . . . . . . Trap . | . . . . . . . Miscellaneous . | . . . . . . . Route ------- -11/Scrapyard -10/Materials (discovered 4 exits: *Mat x3 / [*Min]) -10/Mines -9/Materials (discovered 2 exits: *Mat / Min) -8/Materials -8/Storage -8/Garrison History --------- Turn | Location | Event 4 | -11/Scrapyard | Discovered new exit (range 16) 16 | -11/Scrapyard | Entered Materials 44 | -10/Materials | Identified exit to Materials 81 | -10/Materials | Discovered new exit (range 8) 85 | -10/Materials | Entered Mines 91 | -10/Mines | Learned location of 1 exit from Materials 134 | -10/Mines | Assembled infested the area 141 | -10/Mines | Met a Derelict bent on vengeance 243 | -10/Mines | Discovered exit to Materials (range 14) 257 | -10/Mines | Entered Materials 257 | -9/Materials | Evolved 2 slots: Weapon x2 258 | -9/Materials | Identified exit to Mines 305 | -9/Materials | Build established: Mutant 416 | -9/Materials | Discovered new exit (range 15) 425 | -9/Materials | Entered another Materials area 425 | -8/Materials | Evolved 2 slots: Weapon x2 627 | -8/Materials | Discovered new exit (range 16) 635 | -8/Materials | Entered Storage 735 | -8/Storage | Core integrity fell below 50% 737 | -8/Storage | Identified exit to Garrison 737 | -8/Storage | Entered Garrison 778 | -8/Garrison | Triggered checkpoint 789 | -8/Garrison | Triggered checkpoint 795 | -8/Garrison | Core integrity fell below 20% 804 | -8/Garrison | Destroyed by S-10 Pest with Light Assault Rifle Last Messages --------------- 00766_ Field strength at 10. 00767_ Field strength at 4. 00768_ Stasis field depleted. 00773_ ALERT: Dispatching investigation squad to Recycling. 00778_ Knocked back. 00778_ Beams of light sweep through the air. An alarm sounds. 00789_ C-45 Heavy ARC bursts open, deploying its payload. 00789_ G-50 Soldier unfolds itself. 00789_ G-47 Trooper unfolds itself. 00800_ Slammed into C-17 Slicer. 00801_ S-10 Pest destroyed. 00802_ Triggered Stasis Trap. 00802_ A bubble of rippling energy engulfs the area. 00802_ Field strength at 94. 00803_ Field strength at 86. 00804_ Field strength at 67. Map ----- +----------------------------------------------------+ | ????????????????????????????????# #?? | | ????????????????????????????????# ## ## ^ #?? | | ????????????????????????????????# #??? ## #?? | | ????????????????????????????????# #?????## #?? | | ????????????????????????????????+ #??????? #?? | | ????????????????????????????????# #??????? #?? | | ????????????????????????????????# #??????? #?? | | ????????????????????????????????# #??????? #?? | | ??????????##############++####### #??????? ?? | | ????????? #??????? ?? | | ????????? #??????? ??? | | ????????? #????????????? | | ????????????############ #######+###????????????? | | ???????????????????????# ###????????????????????? | | ???????????????????????# "#????????????????????? | | ???????????????????????# "%+????????????????????? | | ???????????????????????# "#????????????????????? | | ???????????????????????# ###????????????????????? | | ???????????????????????# #??????????????????????? | | ???????????????????????# #??????????????????????? | | ???????????????????????#gg###????????????????????? | | ???????????????????????# #"#????????????????????? | | ???????????????????????# g*"#????????????????????? | | ???????????????????????#ss "#????????????????????? | | ???????????????????????# ^ "#????????????????????? | | ???????????????????????# @#"#????????????????????? | | ???????????????????????# c###????????????????????? | | ???????????????????????#//#??????????????????????? | | ????????????????????#### ######?????????????????? | | ????????????????????#"" % ""#?????????????????? | | ????????????????????#"! !"#?????????????????? | | ????????????????????#"! !"#?????????????????? | | ????????????????????#"! !"#?????????????????? | | ????????????????????#"! !"#?????????????????? | | ????????????????????#"! !"#?????????????????? | | ????????????????????#"! !"#?????????????????? | | ????????????????????#"" ""#?????????????????? | | ????????????????????#"""!!!!"""#?????????????????? | | ????????????????????#""""""""""#?????????????????? | | ????????????????????############?????????????????? | | ?????????????????????????????????????????????????? | | ?????????????????????????????????????????????????? | | ?????????????????????????????????????????????????? | | ?????????????????????????????????????????????????? | | | | | | | | | | | | | +----------------------------------------------------+ Best States ------------- Heat Dissipation 31 Energy Generation 5 Energy Capacity 100 Matter Stores 300 Matter Capacity 300 Sight Range 16 Terrain Scan Density 10 Evasion (%) 50 Item Schematics ----------------- None Robot Schematics ------------------ None Fabricated ------------ Nothing Repaired ---------- Nothing Studied --------- None Alien Tech Used ----------------- None Achievements -------------- None Challenges ------------ None Game ------ Seed UltimateWarpDriveblaster Manual? 0 Play Time 00:08:36 Cumulative 38.5 hours Start 2026.06.17 @ 15:41:25 End 2026.06.17 @ 15:49:15 Sessions 1 Manual Loads 0 Difficulty Rogue Special Mode None Game No. 99 Rogue 99 Adventurer 0 Explorer 0 Win Type - Total 3 Types 3/0/0/0/0/0/0/0/0/0 Lore% 43 Gallery% 34 Achievement% 35 Wizard Run 0 Options --------- Layout 1 ASCII 0 Keyboard 0 Movement Mouse Keybinds 0 Fullscreen 1 Font 16/SmallcapsGlow Map View 50x40 Zoom Use 0% Tactical HUD 1 Map Filters NONE Filters NONE Steam SD RUN: e0d693b0-3af4-4c55-975a-4d39c7977670